fUST/lending_fUST_20250208
["ID","MTS","AMOUNT","RATE_DAILY","PERIOD"]
[352192373,1738986657032,-1008.78,0.00011506,2]
[352192374,1738986657041,-504.14001609,0.00011506,2]
[352192375,1738986657055,-602.02,0.00011506,2]
[352192376,1738986657065,-502.6365356,0.00011506,2]
[352192377,1738986657075,-500.0,0.00011506,2]
[352192378,1738986657084,-500.0,0.00011506,2]
[352192379,1738986657093,-500.0,0.00011506,2]
[352192380,1738986657102,-1744.29943141,0.00011506,2]
[352192381,1738986804072,3000.0,0.00014,30]
[352192382,1738986804512,3000.0,0.0001401,30]
[352192383,1738986804927,3000.0,0.0001402,30]
[352192391,1738987407672,900.0,8.002e-05,2]
[352192491,1738987833129,-1977.64817638,0.00010758,2]
[352192492,1738987833138,-300.0,0.00010848,2]
[352192493,1738987833148,-690.14333822,0.00010857,2]
[352192494,1738987833157,-183.28173978,0.00010858,2]
[352192495,1738987833166,-38032.19652877,0.00010858,2]
[352192496,1738987833175,-500.0,0.00010957,2]
[352192497,1738987833184,-161.31946709,0.00010957,2]
[352192498,1738987833194,-370.01547345,0.00010957,2]
[352192499,1738987833203,-500.0,0.00010957,2]
[352192500,1738987833212,-485.95591253,0.00010958,2]
[352192501,1738987833221,-500.0,0.00010958,2]
[352192502,1738987833229,-609.79749118,0.00010958,2]
[352192503,1738987833237,-500.0,0.00010958,2]
[352192504,1738987833255,-500.0,0.00010958,2]
[352192505,1738987833264,-286.03603718,0.00010958,2]
[352192506,1738987833274,-500.0,0.00010958,2]
[352192507,1738987833283,-500.0,0.00010958,2]
[352192508,1738987833293,-500.0,0.00010958,2]
[352192509,1738987833303,-500.0,0.00010958,2]
[352192510,1738987833312,-500.0,0.00010958,2]
[352192511,1738987833321,-500.0,0.00010958,2]
[352192512,1738987833330,-500.0,0.00010958,2]
[352192513,1738987833512,-500.0,0.00010958,2]
[352192514,1738987833521,-500.0,0.00010958,2]
[352192515,1738987833531,-500.0,0.00010958,2]
[352192516,1738987833541,-500.38924188,0.00010958,2]
[352192517,1738987833550,-500.0,0.00010958,2]
[352192518,1738987833560,-502.41230903,0.00010958,2]
[352192519,1738987833569,-500.78690807,0.00010958,2]
[352192520,1738987833579,-500.0,0.00010958,2]
[352192521,1738987833589,-500.0,0.00010958,2]
[352192522,1738987833598,-500.53716093,0.00010958,2]
[352192523,1738987833607,-500.90578574,0.00010958,2]
[352192524,1738987833616,-500.62441331,0.00010958,2]
[352192525,1738987833625,-500.0,0.00010958,2]
[352192526,1738987833635,-626.15990179,0.00010958,2]
[352192527,1738987833644,-502.59662696,0.00010958,2]
[352192528,1738987833653,-500.0,0.00010958,2]
[352192529,1738987833663,-500.0,0.00010958,2]
[352192530,1738987833671,-500.0,0.00010958,2]
[352192531,1738987833681,-500.0,0.00010958,2]
[352192532,1738987833690,-502.38371468,0.00010958,2]
[352192533,1738987833700,-500.0,0.00010958,2]
[352192534,1738987833711,-503.28359242,0.00010958,2]
[352192535,1738987833721,-500.0,0.00010958,2]
[352192536,1738987833730,-500.0,0.00010958,2]
[352192537,1738987833739,-501.2948225,0.00010958,2]
[352192538,1738987833749,-501.50530517,0.00010958,2]
[352192539,1738987833758,-500.0,0.00010958,2]
[352192540,1738987833767,-500.0,0.00010958,2]
[352192541,1738987833776,-500.0,0.00010958,2]
[352192542,1738987833786,-500.0,0.00010958,2]
[352192543,1738987833795,-500.0,0.00010958,2]
[352192544,1738987833804,-500.0,0.00010958,2]
[352192545,1738987833813,-500.0,0.00010958,2]
[352192546,1738987833823,-500.0,0.00010958,2]
[352192547,1738987833832,-500.0,0.00010958,2]
[352192548,1738987833842,-500.0,0.00010958,2]
[352192549,1738987833854,-500.78700186,0.00010958,2]
[352192550,1738987833863,-500.0,0.00010958,2]
[352192551,1738987833872,-500.2920378,0.00010958,2]
[352192552,1738987833881,-501.90125409,0.00010958,2]
[352192554,1738987833891,-500.0,0.00010958,2]
[352192556,1738987833900,-501.54808729,0.00010958,2]
[352192557,1738987833909,-500.0,0.00010958,2]
[352192559,1738987833918,-500.0,0.00010958,2]
[352192561,1738987833927,-500.55675505,0.00010958,2]
[352192563,1738987833937,-500.0,0.00010958,2]
[352192565,1738987833946,-500.0,0.00010958,2]
[352192567,1738987833955,-624.67298155,0.00010958,2]
[352192569,1738987833965,-501.96513536,0.00010958,2]
[352192571,1738987833975,-500.0,0.00010958,2]
[352192573,1738987833986,-500.0,0.00010958,2]
[352192575,1738987833995,-500.0,0.00010958,2]
[352192577,1738987834005,-596.26,0.00010958,2]
[352192579,1738987834016,-500.0,0.00010958,2]
[352192581,1738987834026,-500.0,0.00010958,2]
[352192584,1738987834040,-500.0,0.00010958,2]
[352192586,1738987834050,-502.99163922,0.00010958,2]
[352192588,1738987834059,-500.0,0.00010958,2]
[352192590,1738987834069,-500.0,0.00010958,2]
[352192592,1738987834080,-532.26,0.00010958,2]
[352192594,1738987834096,-504.40682222,0.00010958,2]
[352192596,1738987834106,-500.0,0.00010958,2]
[352192598,1738987834116,-500.0,0.00010958,2]
[352192600,1738987834125,-500.0,0.00010958,2]
[352192602,1738987834134,-500.0,0.00010958,2]
[352192604,1738987834144,-500.0,0.00010958,2]
[352192606,1738987834153,-501.1745909,0.00010958,2]
[352192608,1738987834163,-500.0,0.00010958,2]
[352192610,1738987834172,-500.0,0.00010958,2]
[352192612,1738987834181,-500.0,0.00010958,2]
[352192614,1738987834191,-500.0,0.00010958,2]
[352192616,1738987834200,-501.70467411,0.00010958,2]
[352192618,1738987834209,-500.0,0.00010958,2]
[352192620,1738987834219,-500.0,0.00010958,2]
[352192622,1738987834229,-500.0,0.00010958,2]
[352192624,1738987834241,-502.96487902,0.00010958,2]
[352192626,1738987834251,-500.0,0.00010958,2]
[352192628,1738987834260,-500.0,0.00010958,2]
[352192630,1738987834270,-176.98050047,0.00010958,2]
[352192632,1738987834280,-500.0,0.00010958,2]
[352192634,1738987834290,-354.61194659,0.00010958,2]
[352192636,1738987834299,-500.0,0.00010958,2]
[352192638,1738987834308,-503.49520543,0.00010958,2]
[352192640,1738987834318,-500.0,0.00010958,2]
[352192642,1738987834328,-500.0,0.00010958,2]
[352192644,1738987834337,-500.0,0.00010958,2]
[352192646,1738987834347,-509.53343454,0.00010958,2]
[352192648,1738987834357,-502.28224242,0.00010958,2]
[352192650,1738987834367,-500.0,0.00010958,2]
[352192652,1738987834376,-505.14423821,0.00010958,2]
[352192654,1738987834386,-501.92399289,0.00010958,2]
[352192657,1738987834396,-501.02880602,0.00010958,2]
[352192658,1738987834408,-500.0,0.00010958,2]
[352192660,1738987834419,-500.0,0.00010958,2]
[352192662,1738987834430,-774.87,0.00010958,2]
[352192664,1738987834440,-500.0,0.00010958,2]
[352192666,1738987834449,-411.74466079,0.00010958,2]
[352192668,1738987834459,-500.0,0.00010958,2]
[352192670,1738987834468,-500.0,0.00010958,2]
[352192672,1738987834477,-500.0,0.00010958,2]
[352192674,1738987834487,-500.0,0.00010958,2]
[352192676,1738987834496,-189.55482154,0.00010958,2]
[352192696,1738987834680,-312.63978971,0.00010958,2]
[352192698,1738987834690,-500.0,0.00010958,2]
[352192700,1738987834702,-167.97118295,0.00010958,2]
[352192702,1738987834711,-219.38902934,0.00010958,2]
[352192706,1738987834738,-282.75004721,0.00010958,2]
[352192708,1738987834747,-500.0,0.00010958,2]
[352192709,1738987834756,-500.0,0.00010958,2]
[352192712,1738987834766,-303.7465284,0.00010958,2]
[352192714,1738987834776,-500.0,0.00010958,2]
[352192716,1738987834787,-500.0,0.00010958,2]
[352192717,1738987834796,-500.0,0.00010958,2]
[352192719,1738987834805,-500.0,0.00010958,2]
[352192721,1738987834815,-529.76,0.00010958,2]
[352192723,1738987834825,-500.0,0.00010958,2]
[352192726,1738987834835,-501.36750273,0.00010958,2]
[352192728,1738987834845,-500.0,0.00010958,2]
[352192729,1738987834854,-961.79,0.00010958,2]
[352192731,1738987834863,-501.87606981,0.00010958,2]
[352192733,1738987834874,-500.0,0.00010958,2]
[352192735,1738987834883,-500.0,0.00010958,2]
[352192737,1738987834893,-500.0,0.00010958,2]
[352192739,1738987834903,-503.20074739,0.00010958,2]
[352192741,1738987834912,-500.0,0.00010958,2]
[352192743,1738987834921,-500.0,0.00010958,2]
[352192745,1738987834930,-500.0,0.00010958,2]
[352192747,1738987834940,-597.30409777,0.00010958,2]
[352192749,1738987834952,-500.0,0.00010958,2]
[352192751,1738987834962,-500.0,0.00010958,2]
[352192753,1738987834971,-500.0,0.00010958,2]
[352192755,1738987834981,-500.0,0.00010958,2]
[352192757,1738987834990,-500.0,0.00010958,2]
[352192759,1738987834999,-562.67,0.00010958,2]
[352192761,1738987835009,-500.0,0.00010958,2]
[352192763,1738987835018,-500.0,0.00010958,2]
[352192765,1738987835027,-500.0,0.00010958,2]
[352192767,1738987835037,-500.0,0.00010958,2]
[352192769,1738987835046,-508.93314052,0.00010958,2]
[352192771,1738987835055,-501.51816805,0.00010958,2]
[352192773,1738987835065,-500.0,0.00010958,2]
[352192775,1738987835074,-500.0,0.00010958,2]
[352192777,1738987835083,-500.0,0.00010958,2]
[352192778,1738987835092,-500.0,0.00010958,2]
[352192780,1738987835102,-500.0,0.00010958,2]
[352192782,1738987835111,-500.0,0.00010958,2]
[352192783,1738987835120,-500.0,0.00010958,2]
[352192784,1738987835130,-500.0,0.00010958,2]
[352192786,1738987835139,-152.83081549,0.00010958,2]
[352192788,1738987835149,-500.0,0.00010958,2]
[352192790,1738987835159,-750.49,0.00010958,2]
[352192791,1738987835168,-500.0,0.00010958,2]
[352192793,1738987835177,-500.0,0.00010958,2]
[352192795,1738987835187,-500.0,0.00010958,2]
[352192797,1738987835197,-500.0,0.00010958,2]
[352192799,1738987835206,-500.0,0.00010958,2]
[352192801,1738987835215,-500.0,0.00010958,2]
[352192803,1738987835224,-500.0,0.00010958,2]
[352192805,1738987835233,-500.0,0.00010958,2]
[352192807,1738987835242,-190.38359555,0.00010958,2]
[352192809,1738987835251,-500.0,0.00010958,2]
[352192811,1738987835260,-500.0,0.00010958,2]
[352192813,1738987835269,-500.0,0.00010958,2]
[352192815,1738987835278,-500.0,0.00010958,2]
[352192817,1738987835287,-500.0,0.00010958,2]
[352192819,1738987835296,-500.0,0.00010958,2]
[352192821,1738987835306,-500.0,0.00010958,2]
[352192823,1738987835315,-500.0,0.00010958,2]
[352192825,1738987835325,-500.0,0.00010958,2]
[352192827,1738987835334,-500.0,0.00010958,2]
[352192829,1738987835344,-213.97509323,0.00010958,2]
[352192831,1738987835353,-500.0,0.00010958,2]
[352192833,1738987835362,-500.0,0.00010958,2]
[352192835,1738987835371,-500.0,0.00010958,2]
[352192837,1738987835380,-500.0,0.00010958,2]
[352192839,1738987835390,-500.0,0.00010958,2]
[352192841,1738987835399,-505.59108164,0.00010958,2]
[352192843,1738987835409,-500.0,0.00010958,2]
[352192845,1738987835418,-500.0,0.00010958,2]
[352192847,1738987835428,-500.0,0.00010958,2]
[352192849,1738987835437,-500.0,0.00010958,2]
[352192851,1738987835447,-500.0,0.00010958,2]
[352192853,1738987835456,-500.0,0.00010958,2]
[352192855,1738987835465,-500.0,0.00010958,2]
[352192857,1738987835475,-500.0,0.00010958,2]
[352192859,1738987835483,-500.0,0.00010958,2]
[352192860,1738987835493,-500.0,0.00010958,2]
[352192862,1738987835503,-500.0,0.00010958,2]
[352192863,1738987835513,-500.0,0.00010958,2]
[352192865,1738987835522,-500.0,0.00010958,2]
[352192867,1738987835533,-500.0,0.00010958,2]
[352192868,1738987835542,-500.0,0.00010958,2]
[352192869,1738987835551,-500.0,0.00010958,2]
[352192870,1738987835560,-500.0,0.00010958,2]
[352192871,1738987835571,-501.40233573,0.00010958,2]
[352192872,1738987835581,-899.9,0.00010958,2]
[352192873,1738987835590,-500.0,0.00010958,2]
[352192874,1738987835599,-500.0,0.00010958,2]
[352192875,1738987835609,-508.44518752,0.00010958,2]
[352192876,1738987835618,-500.0,0.00010958,2]
[352192877,1738987835628,-500.0,0.00010958,2]
[352192878,1738987835637,-500.59424151,0.00010958,2]
[352192879,1738987835647,-500.0,0.00010958,2]
[352192880,1738987835656,-207.72769697,0.00010958,2]
[352192881,1738987835665,-501.62233902,0.00010958,2]
[352192882,1738987835675,-502.19146056,0.00010958,2]
[352192883,1738987835684,-500.0,0.00010958,2]
[352192884,1738987835694,-500.0,0.00010958,2]
[352192885,1738987835709,-500.0,0.00010958,2]
[352192886,1738987835719,-500.0,0.00010958,2]
[352192887,1738987835728,-500.0,0.00010958,2]
[352192888,1738987835738,-500.0,0.00010958,2]
[352192889,1738987835748,-500.0,0.00010958,2]
[352192890,1738987835757,-1210.3,0.00010958,2]
[352192891,1738987835767,-500.0,0.00010958,2]
[352192892,1738987835776,-500.0,0.00010958,2]
[352192893,1738987835788,-309.07352518,0.00010958,2]
[352192894,1738987835797,-500.0,0.00010958,2]
[352192895,1738987835806,-1293.68,0.00010958,2]
[352192896,1738987835816,-504.10515674,0.00010958,2]
[352192897,1738987835826,-500.0,0.00010958,2]
[352192898,1738987835836,-500.0,0.00010958,2]
[352192899,1738987835845,-500.0,0.00010958,2]
[352192900,1738987835855,-500.0,0.00010958,2]
[352192901,1738987835864,-500.0,0.00010958,2]
[352192902,1738987835874,-500.0,0.00010958,2]
[352192903,1738987835883,-641.76692231,0.00010958,2]
[352192904,1738987835892,-500.0,0.00010958,2]
[352192905,1738987835902,-500.0,0.00010958,2]
[352192906,1738987835911,-559.42,0.00010958,2]
[352192907,1738987835921,-506.04154076,0.00010958,2]
[352192908,1738987835931,-500.0,0.00010958,2]
[352192909,1738987835940,-500.0,0.00010958,2]
[352192910,1738987835949,-500.0,0.00010958,2]
[352192911,1738987835959,-500.0,0.00010958,2]
[352192912,1738987835968,-500.0,0.00010958,2]
[352192913,1738987835977,-502.7297982,0.00010958,2]
[352192914,1738987835987,-500.0,0.00010958,2]
[352192915,1738987835997,-500.0,0.00010958,2]
[352192916,1738987836007,-500.0,0.00010958,2]
[352192917,1738987836016,-500.0,0.00010958,2]
[352192918,1738987836026,-500.0,0.00010958,2]
[352192919,1738987836036,-500.0,0.00010958,2]
[352192920,1738987836045,-500.0,0.00010958,2]
[352192921,1738987836055,-500.0,0.00010958,2]
[352192922,1738987836063,-500.0,0.00010958,2]
[352192923,1738987836073,-500.0,0.00010958,2]
[352192924,1738987836083,-500.0,0.00010958,2]
[352192925,1738987836092,-339.17476872,0.00010958,2]
[352192945,1738987838535,-361.88655738,0.00010848,2]
[352192946,1738987838545,-500.0,0.00010848,2]
[352192947,1738987838555,-500.0,0.00010848,2]
[352192948,1738987838564,-500.0,0.00010848,2]
[352192949,1738987838574,-518.94305429,0.00010848,2]
[352192950,1738987838584,-452.48306004,0.00010848,2]
[352192951,1738987838593,-500.0,0.00010848,2]
[352192952,1738987838603,-500.0,0.00010848,2]
[352192954,1738987838612,-500.0,0.00010848,2]
[352192956,1738987838622,-500.0,0.00010848,2]
[352192957,1738987838631,-500.0,0.00010848,2]
[352192958,1738987838640,-500.0,0.00010848,2]
[352192959,1738987838649,-500.0,0.00010848,2]
[352192960,1738987838658,-500.0,0.00010848,2]
[352192961,1738987838668,-500.0,0.00010848,2]
[352192962,1738987838677,-500.0,0.00010848,2]
[352192963,1738987838686,-500.0,0.00010848,2]
[352192964,1738987838696,-500.0,0.00010848,2]
[352192965,1738987838710,-500.0,0.00010848,2]
[352192966,1738987838719,-500.0,0.00010848,2]
[352192967,1738987838728,-500.0,0.00010848,2]
[352192968,1738987838742,-93.98206908,0.00010848,2]
[352192969,1738987838759,-406.01793092,0.00010848,2]
[352192970,1738987838772,-500.0,0.00010848,2]
[352192971,1738987838785,-500.0,0.00010848,2]
[352192972,1738987838796,-500.0,0.00010848,2]
[352192973,1738987838807,-537.91441706,0.00010848,2]
[352192974,1738987838819,-500.0,0.00010848,2]
[352192975,1738987838831,-500.0,0.00010848,2]
[352192976,1738987838843,-500.0,0.00010848,2]
[352192977,1738987838855,-500.0,0.00010848,2]
[352192978,1738987838868,-500.0,0.00010848,2]
[352192979,1738987838879,-500.0,0.00010848,2]
[352192980,1738987838891,-280.04377308,0.00010848,2]
[352192981,1738987838903,-500.0,0.00010848,2]
[352192982,1738987838916,-500.0,0.00010848,2]
[352192983,1738987838928,-500.0,0.00010848,2]
[352192984,1738987838939,-500.0,0.00010848,2]
[352192985,1738987838950,-500.0,0.00010848,2]
[352192986,1738987838962,-500.0,0.00010848,2]
[352192987,1738987838972,-500.0,0.00010848,2]
[352192988,1738987838984,-500.0,0.00010848,2]
[352192989,1738987838996,-500.0,0.00010848,2]
[352192990,1738987839008,-500.0,0.00010848,2]
[352192991,1738987839020,-500.0,0.00010848,2]
[352192992,1738987839030,-500.0,0.00010848,2]
[352192993,1738987839040,-500.0,0.00010848,2]
[352192994,1738987839051,-500.0,0.00010848,2]
[352192995,1738987839062,-160.82523128,0.00010958,2]
[352192996,1738987839073,-500.0,0.00010958,2]
[352192997,1738987839085,-500.0,0.00010958,2]
[352192998,1738987839096,-500.0,0.00010958,2]
[352192999,1738987839108,-500.0,0.00010958,2]
[352193000,1738987839120,-500.0,0.00010958,2]
[352193001,1738987839132,-500.0,0.00010958,2]
[352193002,1738987839144,-500.0,0.00010958,2]
[352193003,1738987839156,-500.0,0.00010958,2]
[352193004,1738987839169,-500.0,0.00010958,2]
[352193005,1738987839180,-500.0,0.00010958,2]
[352193006,1738987839190,-500.0,0.00010958,2]
[352193007,1738987839201,-502.41501435,0.00010958,2]
[352193008,1738987839211,-500.0,0.00010958,2]
[352193009,1738987839222,-500.0,0.00010958,2]
[352193010,1738987839233,-500.0,0.00010958,2]
[352193011,1738987839247,-500.0,0.00010958,2]
[352193012,1738987839258,-500.0,0.00010958,2]
[352193013,1738987839270,-837.89,0.00010958,2]
[352193014,1738987839279,-500.0,0.00010958,2]
[352193015,1738987839290,-1223.97,0.00010958,2]
[352193016,1738987839300,-500.0,0.00010958,2]
[352193017,1738987839312,-500.0,0.00010958,2]
[352193018,1738987839324,-500.0,0.00010958,2]
[352193019,1738987839337,-500.0,0.00010958,2]
[352193020,1738987839348,-296.44332737,0.00010958,2]
[352193021,1738987839358,-500.0,0.00010958,2]
[352193022,1738987839369,-500.0,0.00010958,2]
[352193023,1738987839380,-500.0,0.00010958,2]
[352193024,1738987839390,-247.64657475,0.00010958,2]
[352193025,1738987839406,-253.58654863,0.00010958,2]
[352193026,1738987839417,-706.81,0.00010958,2]
[352193027,1738987839428,-606.40808329,0.00010958,2]
[352193028,1738987839439,-612.18,0.00010958,2]
[352193029,1738987839449,-500.0,0.00010958,2]
[352193030,1738987839460,-1582.31,0.00010958,2]
[352193031,1738987839471,-500.0,0.00010958,2]
[352193032,1738987839482,-500.0,0.00010958,2]
[352193033,1738987839492,-492.36797751,0.00010958,2]
[352193034,1738987839506,-7.63202249,0.00010958,2]
[352193035,1738987839517,-500.0,0.00010958,2]
[352193036,1738987839528,-501.16015369,0.00010958,2]
[352193037,1738987839539,-500.0,0.00010958,2]
[352193038,1738987839550,-500.0,0.00010958,2]
[352193039,1738987839560,-516.21,0.00010958,2]
[352193040,1738987839571,-500.0,0.00010958,2]
[352193041,1738987839583,-587.97,0.00010958,2]
[352193042,1738987839594,-1007.02,0.00010958,2]
[352193043,1738987839605,-500.0,0.00010958,2]
[352193044,1738987839616,-503.49528579,0.00010958,2]
[352193045,1738987839626,-503.57221153,0.00010958,2]
[352193046,1738987839637,-249.70435611,0.00010958,2]
[352193047,1738987839655,-250.29564389,0.00010958,2]
[352193048,1738987839666,-155.56183617,0.00010958,2]
[352193054,1738987840508,-344.43816383,0.00010958,2]
[352193055,1738987840519,-500.0,0.00010958,2]
[352193056,1738987840530,-500.0,0.00010958,2]
[352193057,1738987840541,-500.0,0.00010958,2]
[352193058,1738987840552,-503.52100618,0.00010958,2]
[352193059,1738987840563,-500.0,0.00010958,2]
[352193060,1738987840573,-500.0,0.00010958,2]
[352193061,1738987840584,-500.0,0.00010958,2]
[352193062,1738987840595,-596.18,0.00010958,2]
[352193063,1738987840606,-500.0,0.00010958,2]
[352193064,1738987840617,-1270.44,0.00010958,2]
[352193065,1738987840627,-895.34,0.00010958,2]
[352193066,1738987840640,-500.0,0.00010958,2]
[352193067,1738987840656,-500.0,0.00010958,2]
[352193068,1738987840669,-500.0,0.00010958,2]
[352193069,1738987840681,-500.0,0.00010958,2]
[352193070,1738987840692,-500.34010031,0.00010958,2]
[352193071,1738987840708,-500.0,0.00010958,2]
[352193072,1738987840719,-10686.5,0.00010958,2]
[352193073,1738987840730,-2464.67,0.00010958,2]
[352193074,1738987840742,-507.51000782,0.00010958,2]
[352193075,1738987840754,-500.0,0.00010958,2]
[352193076,1738987840766,-500.0,0.00010958,2]
[352193077,1738987840777,-3251.31,0.00010958,2]
[352193078,1738987840788,-502.24448422,0.00010958,2]
[352193079,1738987840800,-500.0,0.00010958,2]
[352193080,1738987840811,-512.90396425,0.00010958,2]
[352193081,1738987840823,-503.20686269,0.00010958,2]
[352193082,1738987840834,-500.0,0.00010958,2]
[352193083,1738987840845,-500.0,0.00010958,2]
[352193084,1738987840856,-500.0,0.00010958,2]
[352193085,1738987840867,-500.0,0.00010958,2]
[352193086,1738987840878,-1193.76,0.00010958,2]
[352193087,1738987840890,-500.0,0.00010958,2]
[352193088,1738987840901,-501.55257653,0.00010958,2]
[352193089,1738987840912,-500.0,0.00010958,2]
[352193090,1738987840923,-36923.74,0.00010958,2]
[352193091,1738987840934,-500.0,0.00010958,2]
[352193092,1738987840946,-500.0,0.00010958,2]
[352193093,1738987840958,-500.0,0.00010958,2]
[352193094,1738987840969,-500.0,0.00010958,2]
[352193095,1738987840980,-1686.06,0.00010958,2]
[352193096,1738987840991,-1133.28,0.00010958,2]
[352193097,1738987841002,-500.0,0.00010958,2]
[352193098,1738987841014,-187.35996286,0.00010958,2]
[352193099,1738987841025,-505.80442311,0.00010958,2]
[352193100,1738987841037,-501.3111807,0.00010958,2]
[352193101,1738987841048,-1411.97,0.00010958,2]
[352193102,1738987841058,-500.0,0.00010958,2]
[352193103,1738987841068,-500.0,0.00010958,2]
[352193104,1738987841078,-500.0,0.00010958,2]
[352193105,1738987841091,-500.0,0.00010958,2]
[352193106,1738987841101,-500.0,0.00010958,2]
[352193107,1738987841111,-500.0,0.00010958,2]
[352193108,1738987841120,-226.01123415,0.00010958,2]
[352193109,1738987841130,-500.0,0.00010958,2]
[352193110,1738987841139,-508.76671154,0.00010958,2]
[352193111,1738987841149,-666.18,0.00010958,2]
[352193112,1738987841160,-500.0,0.00010958,2]
[352193113,1738987841170,-500.0,0.00010958,2]
[352193114,1738987841179,-853.11,0.00010958,2]
[352193115,1738987841189,-500.0,0.00010958,2]
[352193116,1738987841199,-500.0,0.00010958,2]
[352193117,1738987841209,-500.0,0.00010958,2]
[352193118,1738987841219,-1324.75,0.00010958,2]
[352193119,1738987841228,-515.33804964,0.00010958,2]
[352193120,1738987841238,-500.0,0.00010958,2]
[352193121,1738987841472,-500.0,0.00010958,2]
[352193122,1738987841491,-758.85,0.00010958,2]
[352193123,1738987841508,-500.0,0.00010958,2]
[352193124,1738987841519,-500.0,0.00010958,2]
[352193125,1738987841528,-500.0,0.00010958,2]
[352193126,1738987841539,-500.0,0.00010958,2]
[352193127,1738987841549,-269.11,0.00010958,2]
[352193128,1738987841559,-656.37,0.00010958,2]
[352193129,1738987841569,-500.0,0.00010958,2]
[352193130,1738987841579,-500.0,0.00010958,2]
[352193131,1738987841589,-500.0,0.00010958,2]
[352193132,1738987841599,-500.0,0.00010958,2]
[352193133,1738987841609,-500.0,0.00010958,2]
[352193134,1738987841618,-500.0,0.00010958,2]
[352193135,1738987841628,-1070.29,0.00010958,2]
[352193136,1738987841638,-506.14794496,0.00010958,2]
[352193137,1738987841647,-500.0,0.00010958,2]
[352193138,1738987841657,-500.0,0.00010958,2]
[352193139,1738987841666,-500.69739595,0.00010958,2]
[352193140,1738987841675,-500.0,0.00010958,2]
[352193141,1738987841685,-500.0,0.00010958,2]
[352193142,1738987841695,-500.0,0.00010958,2]
[352193143,1738987841709,-500.0,0.00010958,2]
[352193144,1738987841718,-500.0,0.00010958,2]
[352193145,1738987841728,-424.72585932,0.00010958,2]
[352193146,1738987841737,-1030.55,0.00010958,2]
[352193147,1738987841750,-500.0,0.00010958,2]
[352193148,1738987841759,-500.0,0.00010958,2]
[352193149,1738987841769,-500.0,0.00010958,2]
[352193150,1738987841779,-500.0,0.00010958,2]
[352193151,1738987841789,-500.0,0.00010958,2]
[352193152,1738987841799,-500.0,0.00010958,2]
[352193153,1738987841808,-500.0,0.00010958,2]
[352193154,1738987841818,-502.06384079,0.00010958,2]
[352193155,1738987841827,-500.0,0.00010958,2]
[352193156,1738987841838,-500.0,0.00010958,2]
[352193157,1738987841847,-394.07672702,0.00010958,2]
[352193158,1738987841861,-105.92327298,0.00010958,2]
[352193159,1738987841871,-500.0,0.00010958,2]
[352193160,1738987841880,-108.85753515,0.00010958,2]
[352193161,1738987841908,-330.154,0.00010958,2]
[352193164,1738987843603,-63.42875139,0.00010958,2]
[352193165,1738987843613,-500.0,0.00010958,2]
[352193166,1738987843622,-3836.07,0.00010958,2]
[352193167,1738987843632,-500.0,0.00010958,2]
[352193168,1738987843642,-2737.11,0.00010958,2]
[352193169,1738987843651,-500.0,0.00010958,2]
[352193170,1738987843660,-500.0,0.00010958,2]